[Event "Early-Titled-Tuesday-Blitz-March-26-2024"]
[Site "Chess.com"]
[Date "2024.03.26"]
[Round "5"]
[White "zverr1"]
[Black "atalz0"]
[Result "1-0"]
[WhiteElo "2533"]
[BlackElo "2375"]
[TimeControl "180+1"]
[EndTime "8:54:33 PDT"]
[Termination "zverr1 won on time"]

1. e4 {[%clk 0:03:00.9]} 1... d5 {[%clk 0:02:13.7]} 2. exd5 {[%clk 0:03:01.8]}
2... Nf6 {[%clk 0:02:13.2]} 3. Nf3 {[%clk 0:03:00.1]} 3... Nxd5 {[%clk 0:02:13]}
4. d4 {[%clk 0:02:57.5]} 4... Bg4 {[%clk 0:02:12.4]} 5. Be2 {[%clk 0:02:57.7]}
5... Nc6 {[%clk 0:02:11.7]} 6. O-O {[%clk 0:02:54.2]} 6... e6 {[%clk 0:02:11.7]}
7. h3 {[%clk 0:02:52.6]} 7... Bh5 {[%clk 0:02:11.5]} 8. c4 {[%clk 0:02:44]} 8...
Nb6 {[%clk 0:02:11.4]} 9. Be3 {[%clk 0:02:33.9]} 9... Bxf3 {[%clk 0:02:09.5]}
10. Bxf3 {[%clk 0:02:34.8]} 10... Nxc4 {[%clk 0:02:09.6]} 11. Bxc6+ {[%clk
0:02:24]} 11... bxc6 {[%clk 0:02:10.5]} 12. Qa4 {[%clk 0:02:24.7]} 12... Nb6
{[%clk 0:02:10.9]} 13. Qxc6+ {[%clk 0:02:24.7]} 13... Qd7 {[%clk 0:02:11.6]} 14.
Qb7 {[%clk 0:01:56.3]} 14... c6 {[%clk 0:01:47.6]} 15. Qa6 {[%clk 0:01:54.5]}
15... Bd6 {[%clk 0:01:42.1]} 16. Nc3 {[%clk 0:01:47.7]} 16... O-O {[%clk
0:01:41.7]} 17. Ne4 {[%clk 0:01:47.8]} 17... Rfb8 {[%clk 0:01:27]} 18. Rac1
{[%clk 0:01:40.8]} 18... Be7 {[%clk 0:01:04.1]} 19. Rc2 {[%clk 0:01:06.2]} 19...
Nd5 {[%clk 0:01:00.7]} 20. a3 {[%clk 0:00:57.2]} 20... Rb6 {[%clk 0:00:56.8]}
21. Qc4 {[%clk 0:00:56.7]} 21... f5 {[%clk 0:00:50.5]} 22. Nc5 {[%clk
0:00:36.7]} 22... Bxc5 {[%clk 0:00:49.5]} 23. dxc5 {[%clk 0:00:37]} 23... Rb5
{[%clk 0:00:42.4]} 24. Bd4 {[%clk 0:00:36.3]} 24... a5 {[%clk 0:00:38.5]} 25.
Re1 {[%clk 0:00:34]} 25... Re8 {[%clk 0:00:19.2]} 26. Rce2 {[%clk 0:00:33.1]}
26... h6 {[%clk 0:00:15.2]} 27. h4 {[%clk 0:00:32.8]} 27... Kh7 {[%clk
0:00:14.8]} 28. g3 {[%clk 0:00:28.6]} 28... Rb7 {[%clk 0:00:11.5]} 29. Qd3
{[%clk 0:00:25.5]} 29... Qf7 {[%clk 0:00:11]} 30. Re5 {[%clk 0:00:21.4]} 30...
Rd7 {[%clk 0:00:10.4]} 31. Qf3 {[%clk 0:00:14.2]} 31... Qg6 {[%clk 0:00:10.4]}
32. h5 {[%clk 0:00:11.2]} 32... Qf7 {[%clk 0:00:08.8]} 33. Rd1 {[%clk
0:00:08.8]} 33... Nf6 {[%clk 0:00:08.3]} 34. Bc3 {[%clk 0:00:06.5]} 34... Rxd1+
{[%clk 0:00:07.3]} 35. Qxd1 {[%clk 0:00:07.4]} 35... Qxh5 {[%clk 0:00:07]} 36.
Qxh5 {[%clk 0:00:06]} 36... Nxh5 {[%clk 0:00:07.9]} 37. Bxa5 {[%clk 0:00:06.6]}
37... Nf6 {[%clk 0:00:06.2]} 38. Bb6 {[%clk 0:00:03.7]} 38... Nd5 {[%clk
0:00:05.2]} 39. a4 {[%clk 0:00:03.7]} 39... Kg6 {[%clk 0:00:04.5]} 40. a5 {[%clk
0:00:03.3]} 40... Kf7 {[%clk 0:00:03.4]} 41. Re1 {[%clk 0:00:04]} 41... Ra8
{[%clk 0:00:01.8]} 42. Ra1 {[%clk 0:00:02.2]} 1-0

[Event "Early-Titled-Tuesday-Blitz-March-26-2024"]
[Site "Chess.com"]
[Date "2024.03.26"]
[Round "5"]
[White "Sina_Movahed"]
[Black "Kiborg95"]
[Result "0-1"]
[WhiteElo "3065"]
[BlackElo "2785"]
[TimeControl "180+1"]
[EndTime "8:54:34 PDT"]
[Termination "Kiborg95 won by resignation"]

1. Nf3 {[%clk 0:03:00.9]} 1... d6 {[%clk 0:02:59.8]} 2. c4 {[%clk 0:03:00.3]}
2... e5 {[%clk 0:02:57.2]} 3. Nc3 {[%clk 0:03:00.5]} 3... f5 {[%clk 0:02:57.3]}
4. d3 {[%clk 0:03:00.3]} 4... Nf6 {[%clk 0:02:56.7]} 5. g3 {[%clk 0:03:00.7]}
5... Be7 {[%clk 0:02:57]} 6. Bg2 {[%clk 0:03:01.3]} 6... O-O {[%clk 0:02:57.7]}
7. O-O {[%clk 0:03:01.9]} 7... a5 {[%clk 0:02:58.3]} 8. Rb1 {[%clk 0:03:01.8]}
8... Qe8 {[%clk 0:02:58.6]} 9. a3 {[%clk 0:02:59.5]} 9... a4 {[%clk 0:02:58.5]}
10. Nb5 {[%clk 0:02:53.7]} 10... Bd8 {[%clk 0:02:51.1]} 11. b4 {[%clk
0:02:50.3]} 11... axb3 {[%clk 0:02:49.9]} 12. Qxb3 {[%clk 0:02:50.1]} 12... Kh8
{[%clk 0:02:47.7]} 13. c5 {[%clk 0:02:20.3]} 13... dxc5 {[%clk 0:02:43.5]} 14.
Bb2 {[%clk 0:02:19.9]} 14... Nc6 {[%clk 0:02:39]} 15. Rfc1 {[%clk 0:02:11.6]}
15... Be6 {[%clk 0:02:02.1]} 16. Qd1 {[%clk 0:02:11.2]} 16... e4 {[%clk
0:01:40.2]} 17. Ne5 {[%clk 0:02:09.1]} 17... Ba2 {[%clk 0:01:35.1]} 18. Nxc6
{[%clk 0:01:47.7]} 18... bxc6 {[%clk 0:01:35.3]} 19. Ra1 {[%clk 0:01:48.2]}
19... cxb5 {[%clk 0:01:31]} 20. Rxa2 {[%clk 0:01:48.3]} 20... Qe6 {[%clk
0:01:31.6]} 21. Raa1 {[%clk 0:01:41.3]} 21... Be7 {[%clk 0:01:31.2]} 22. Rab1
{[%clk 0:01:24.9]} 22... c6 {[%clk 0:01:31.5]} 23. Qc2 {[%clk 0:01:15.2]} 23...
Ra4 {[%clk 0:01:17.8]} 24. Rd1 {[%clk 0:01:09.7]} 24... Nd5 {[%clk 0:01:14.2]}
25. Rbc1 {[%clk 0:00:56.8]} 25... Bd6 {[%clk 0:00:44.6]} 26. Re1 {[%clk
0:00:36.5]} 26... Re8 {[%clk 0:00:44.4]} 27. Rcd1 {[%clk 0:00:32]} 27... exd3
{[%clk 0:00:39.9]} 28. Qxd3 {[%clk 0:00:27.8]} 28... c4 {[%clk 0:00:38.8]} 29.
Bxd5 {[%clk 0:00:25.4]} 29... cxd5 {[%clk 0:00:20.7]} 30. Qxd5 {[%clk
0:00:19.7]} 30... Qxd5 {[%clk 0:00:21.1]} 31. Rxd5 {[%clk 0:00:20.6]} 31... Bxa3
{[%clk 0:00:21.4]} 32. Bxa3 {[%clk 0:00:20.8]} 32... Rxa3 {[%clk 0:00:22.3]} 33.
Rxb5 {[%clk 0:00:21.1]} 33... g6 {[%clk 0:00:22.1]} 34. e3 {[%clk 0:00:20.9]}
34... Raa8 {[%clk 0:00:20.1]} 35. Rb7 {[%clk 0:00:19.8]} 35... Rab8 {[%clk
0:00:19.2]} 36. Ra7 {[%clk 0:00:19.6]} 36... Ra8 {[%clk 0:00:18.9]} 37. Rd7
{[%clk 0:00:18.1]} 37... Red8 {[%clk 0:00:18.6]} 38. Rf7 {[%clk 0:00:17.8]}
38... Kg8 {[%clk 0:00:17.6]} 39. Re7 {[%clk 0:00:18.4]} 39... Rac8 {[%clk
0:00:11.3]} 40. Rc1 {[%clk 0:00:17.1]} 40... c3 {[%clk 0:00:11.3]} 41. Kf1
{[%clk 0:00:17.7]} 41... Rd2 {[%clk 0:00:08.6]} 42. Rb7 {[%clk 0:00:16.8]} 42...
c2 {[%clk 0:00:08.2]} 43. Ke1 {[%clk 0:00:16.9]} 43... Rcd8 {[%clk 0:00:08.2]}
44. Rb8 {[%clk 0:00:14.7]} 44... Rd1+ {[%clk 0:00:07.1]} 45. Ke2 {[%clk
0:00:05.7]} 45... Rxb8 {[%clk 0:00:07.1]} 0-1

[Event "Early-Titled-Tuesday-Blitz-March-26-2024"]
[Site "Chess.com"]
[Date "2024.03.26"]
[Round "5"]
[White "Sanan_Sjugirov"]
[Black "Byniolus"]
[Result "1-0"]
[WhiteElo "3016"]
[BlackElo "2752"]
[TimeControl "180+1"]
[EndTime "8:54:38 PDT"]
[Termination "Sanan_Sjugirov won on time"]

1. d4 {[%clk 0:02:56.7]} 1... d5 {[%clk 0:02:57.6]} 2. c4 {[%clk 0:02:56.3]}
2... c6 {[%clk 0:02:57.9]} 3. Nf3 {[%clk 0:02:56.2]} 3... Nf6 {[%clk 0:02:58.4]}
4. e3 {[%clk 0:02:56.1]} 4... Bf5 {[%clk 0:02:58.6]} 5. Nc3 {[%clk 0:02:56]}
5... e6 {[%clk 0:02:59.2]} 6. Nh4 {[%clk 0:02:56.3]} 6... Be4 {[%clk 0:02:59.9]}
7. f3 {[%clk 0:02:55.8]} 7... Bg6 {[%clk 0:03:00.3]} 8. Qb3 {[%clk 0:02:50.9]}
8... Qb6 {[%clk 0:02:59.4]} 9. Nxg6 {[%clk 0:02:46]} 9... hxg6 {[%clk
0:03:00.3]} 10. Bd2 {[%clk 0:02:43]} 10... Nbd7 {[%clk 0:02:59.7]} 11. O-O-O
{[%clk 0:02:34.8]} 11... Qxb3 {[%clk 0:02:59.7]} 12. axb3 {[%clk 0:02:35.7]}
12... Bd6 {[%clk 0:02:59.1]} 13. h3 {[%clk 0:02:34.5]} 13... O-O-O {[%clk
0:02:57.9]} 14. Bd3 {[%clk 0:02:32.1]} 14... a6 {[%clk 0:02:56.8]} 15. Kc2
{[%clk 0:02:30.9]} 15... c5 {[%clk 0:02:53.2]} 16. g4 {[%clk 0:02:21.2]} 16...
Kb8 {[%clk 0:02:37.4]} 17. h4 {[%clk 0:02:01.9]} 17... Rc8 {[%clk 0:02:15.4]}
18. Kb1 {[%clk 0:01:55.6]} 18... Nb6 {[%clk 0:01:58.3]} 19. dxc5 {[%clk
0:01:38.9]} 19... Bxc5 {[%clk 0:01:57.1]} 20. e4 {[%clk 0:01:39.3]} 20... dxc4
{[%clk 0:01:38.1]} 21. bxc4 {[%clk 0:01:40.2]} 21... e5 {[%clk 0:01:15.3]} 22.
Nd5 {[%clk 0:01:24.6]} 22... Bd4 {[%clk 0:01:10.6]} 23. b3 {[%clk 0:01:15.9]}
23... Nbxd5 {[%clk 0:01:06.5]} 24. exd5 {[%clk 0:01:16.8]} 24... Rce8 {[%clk
0:00:52.7]} 25. Kc2 {[%clk 0:01:05.8]} 25... Ka7 {[%clk 0:00:47.7]} 26. b4
{[%clk 0:00:51.8]} 26... e4 {[%clk 0:00:35.6]} 27. fxe4 {[%clk 0:00:47.8]} 27...
Nxg4 {[%clk 0:00:35.3]} 28. Rdf1 {[%clk 0:00:37.2]} 28... f6 {[%clk 0:00:29.6]}
29. c5 {[%clk 0:00:30.5]} 29... Nf2 {[%clk 0:00:18.7]} 30. Rh2 {[%clk 0:00:29]}
30... Ng4 {[%clk 0:00:18.9]} 31. Rg2 {[%clk 0:00:17.7]} 31... Ne5 {[%clk
0:00:18.7]} 32. Be1 {[%clk 0:00:11.1]} 32... Rh5 {[%clk 0:00:11.6]} 33. Be2
{[%clk 0:00:10.4]} 33... Rhh8 {[%clk 0:00:10.6]} 34. Kb3 {[%clk 0:00:10.1]}
34... a5 {[%clk 0:00:06.2]} 35. Bg3 {[%clk 0:00:08.3]} 35... axb4 {[%clk
0:00:04.9]} 36. Kxb4 {[%clk 0:00:09.1]} 36... Rc8 {[%clk 0:00:03.6]} 37. Rc1
{[%clk 0:00:08.7]} 37... Rhe8 {[%clk 0:00:01.9]} 38. Bb5 {[%clk 0:00:08.5]}
38... b6 {[%clk 0:00:01.6]} 39. Ra2+ {[%clk 0:00:08.4]} 39... Kb7 {[%clk
0:00:01.7]} 40. c6+ {[%clk 0:00:06.1]} 40... Kc7 {[%clk 0:00:01.9]} 41. Ra7+
{[%clk 0:00:06.1]} 41... Kb8 {[%clk 0:00:01.6]} 42. Rb7+ {[%clk 0:00:06.4]}
42... Ka8 {[%clk 0:00:02.3]} 43. Rc2 {[%clk 0:00:06.3]} 43... Bc5+ {[%clk
0:00:02.3]} 44. Kb3 {[%clk 0:00:06.2]} 44... Nxc6 {[%clk 0:00:01.1]} 45. Bxc6
{[%clk 0:00:05.6]} 1-0

[Event "Early-Titled-Tuesday-Blitz-March-26-2024"]
[Site "Chess.com"]
[Date "2024.03.26"]
[Round "5"]
[White "artin10862"]
[Black "Korchmar_Vasiliy"]
[Result "1-0"]
[WhiteElo "2902"]
[BlackElo "2701"]
[TimeControl "180+1"]
[EndTime "8:54:38 PDT"]
[Termination "artin10862 won by resignation"]

1. c4 {[%clk 0:03:00.9]} 1... c6 {[%clk 0:02:59.5]} 2. Nf3 {[%clk 0:02:55.3]}
2... d5 {[%clk 0:02:59.9]} 3. g3 {[%clk 0:02:55.7]} 3... g6 {[%clk 0:02:59.5]}
4. Qa4 {[%clk 0:02:49.7]} 4... dxc4 {[%clk 0:02:58.5]} 5. Qxc4 {[%clk
0:02:49.5]} 5... Bg7 {[%clk 0:02:59.2]} 6. Bg2 {[%clk 0:02:48.7]} 6... Nh6
{[%clk 0:02:59.8]} 7. O-O {[%clk 0:02:40.7]} 7... Nf5 {[%clk 0:03:00]} 8. Rd1
{[%clk 0:02:25]} 8... O-O {[%clk 0:03:00.3]} 9. Nc3 {[%clk 0:02:20.6]} 9... Be6
{[%clk 0:02:51.7]} 10. Qf4 {[%clk 0:02:12.2]} 10... a5 {[%clk 0:02:39.6]} 11. h4
{[%clk 0:02:00.4]} 11... Na6 {[%clk 0:02:38.3]} 12. h5 {[%clk 0:01:55.8]} 12...
Nb4 {[%clk 0:02:26.2]} 13. d3 {[%clk 0:01:40.8]} 13... Nc2 {[%clk 0:01:56]} 14.
Rb1 {[%clk 0:01:40]} 14... b5 {[%clk 0:01:56.9]} 15. Ng5 {[%clk 0:01:28.9]}
15... b4 {[%clk 0:01:40.2]} 16. Nxe6 {[%clk 0:01:16.7]} 16... fxe6 {[%clk
0:01:41.1]} 17. Qd2 {[%clk 0:01:06.8]} 17... bxc3 {[%clk 0:01:35.3]} 18. bxc3
{[%clk 0:01:06.8]} 18... Nce3 {[%clk 0:00:59]} 19. fxe3 {[%clk 0:01:00.8]} 19...
Bh6 {[%clk 0:00:53.1]} 20. Qe1 {[%clk 0:00:40.7]} 20... Bxe3+ {[%clk 0:00:47.2]}
21. Kh2 {[%clk 0:00:37.5]} 21... Qd6 {[%clk 0:00:39.3]} 22. Be4 {[%clk
0:00:27.4]} 22... Bxc1 {[%clk 0:00:31.7]} 23. Rdxc1 {[%clk 0:00:26.6]} 23... Ne3
{[%clk 0:00:32.1]} 24. hxg6 {[%clk 0:00:18.4]} 24... hxg6 {[%clk 0:00:33]} 25.
Bf3 {[%clk 0:00:09.2]} 25... Kg7 {[%clk 0:00:29.2]} 26. Kg1 {[%clk 0:00:08.9]}
26... Nf5 {[%clk 0:00:10]} 27. Kg2 {[%clk 0:00:08]} 27... Ne3+ {[%clk
0:00:10.2]} 28. Kg1 {[%clk 0:00:06.2]} 28... Rh8 {[%clk 0:00:09.4]} 29. Kf2
{[%clk 0:00:04]} 29... Nf5 {[%clk 0:00:09.5]} 30. Qg1 {[%clk 0:00:04.3]} 30...
Rh3 {[%clk 0:00:08.3]} 31. g4 {[%clk 0:00:04]} 31... Nh4 {[%clk 0:00:04.6]} 32.
Be4 {[%clk 0:00:04.2]} 32... Rf8+ {[%clk 0:00:03.8]} 33. Ke1 {[%clk 0:00:04.6]}
33... Rg3 {[%clk 0:00:04.4]} 34. Qd4+ {[%clk 0:00:04.6]} 34... Qxd4 {[%clk
0:00:04.3]} 35. cxd4 {[%clk 0:00:05.5]} 35... Rxg4 {[%clk 0:00:04]} 36. Kd2
{[%clk 0:00:05.6]} 36... Nf5 {[%clk 0:00:03.5]} 37. Rb7 {[%clk 0:00:04]} 37...
Nxd4 {[%clk 0:00:03.4]} 38. Rxe7+ {[%clk 0:00:04.2]} 38... Rf7 {[%clk
0:00:02.8]} 39. Rxf7+ {[%clk 0:00:04.6]} 39... Kxf7 {[%clk 0:00:03.7]} 40. Rc5
{[%clk 0:00:04.6]} 40... Rf4 {[%clk 0:00:03]} 41. Ke3 {[%clk 0:00:03.8]} 41...
e5 {[%clk 0:00:03.5]} 42. Rxe5 {[%clk 0:00:04]} 42... Ne6 {[%clk 0:00:02.1]} 43.
Rxe6 {[%clk 0:00:03.9]} 43... Kxe6 {[%clk 0:00:02.6]} 44. Kxf4 {[%clk
0:00:04.2]} 1-0

[Event "Early-Titled-Tuesday-Blitz-March-26-2024"]
[Site "Chess.com"]
[Date "2024.03.26"]
[Round "5"]
[White "arenal72"]
[Black "ural58"]
[Result "1/2-1/2"]
[WhiteElo "2612"]
[BlackElo "2460"]
[TimeControl "180+1"]
[EndTime "8:54:38 PDT"]
[Termination "Game drawn by repetition"]

1. Nf3 {[%clk 0:03:00.4]} 1... d5 {[%clk 0:02:59.5]} 2. g3 {[%clk 0:03:00.7]}
2... Nc6 {[%clk 0:02:59.3]} 3. d4 {[%clk 0:02:58]} 3... Bf5 {[%clk 0:02:58.6]}
4. c4 {[%clk 0:02:55.3]} 4... e6 {[%clk 0:02:57.3]} 5. cxd5 {[%clk 0:02:55]}
5... exd5 {[%clk 0:02:56.7]} 6. a3 {[%clk 0:02:55]} 6... Bd6 {[%clk 0:02:54.3]}
7. Bg2 {[%clk 0:02:54.9]} 7... Nf6 {[%clk 0:02:53.4]} 8. Nc3 {[%clk 0:02:54.6]}
8... O-O {[%clk 0:02:39.2]} 9. Bg5 {[%clk 0:02:54.2]} 9... Be6 {[%clk
0:02:29.3]} 10. O-O {[%clk 0:02:34.7]} 10... h6 {[%clk 0:02:29.3]} 11. Bxf6
{[%clk 0:02:33.6]} 11... Qxf6 {[%clk 0:02:29.3]} 12. e4 {[%clk 0:02:29.1]} 12...
dxe4 {[%clk 0:01:45]} 13. Nxe4 {[%clk 0:02:30]} 13... Qf5 {[%clk 0:01:44.8]} 14.
Nxd6 {[%clk 0:02:29]} 14... cxd6 {[%clk 0:01:44.3]} 15. Nh4 {[%clk 0:02:28.9]}
15... Qb5 {[%clk 0:01:15.1]} 16. d5 {[%clk 0:02:27.3]} 16... g5 {[%clk
0:01:10.6]} 17. dxe6 {[%clk 0:02:17.7]} 17... gxh4 {[%clk 0:01:10.6]} 18. Qxd6
{[%clk 0:02:15.5]} 18... Rad8 {[%clk 0:01:03.6]} 19. exf7+ {[%clk 0:02:15.1]}
19... Kg7 {[%clk 0:01:02.8]} 20. Qf4 {[%clk 0:02:11]} 20... Qg5 {[%clk
0:00:55.6]} 21. Qxg5+ {[%clk 0:02:02.4]} 21... hxg5 {[%clk 0:00:55.2]} 22. Bxc6
{[%clk 0:02:02.4]} 22... bxc6 {[%clk 0:00:55.2]} 23. Rac1 {[%clk 0:02:01.5]}
23... Rd6 {[%clk 0:00:55.1]} 24. Rc5 {[%clk 0:01:59.9]} 24... Rg6 {[%clk
0:00:45.9]} 25. Rfc1 {[%clk 0:01:50.2]} 25... Rc8 {[%clk 0:00:45.5]} 26. Rf5
{[%clk 0:01:48]} 26... Rf8 {[%clk 0:00:41.6]} 27. Rcc5 {[%clk 0:01:40.1]} 27...
hxg3 {[%clk 0:00:32.1]} 28. hxg3 {[%clk 0:01:37.1]} 28... g4 {[%clk 0:00:32.2]}
29. Ra5 {[%clk 0:01:34.7]} 29... Rxf7 {[%clk 0:00:26.5]} 30. Rxf7+ {[%clk
0:01:34.6]} 30... Kxf7 {[%clk 0:00:26.9]} 31. Rxa7+ {[%clk 0:01:34.9]} 31... Ke6
{[%clk 0:00:27]} 32. Ra4 {[%clk 0:01:32.7]} 32... Kd5 {[%clk 0:00:26.2]} 33. Kg2
{[%clk 0:01:27.7]} 33... c5 {[%clk 0:00:26.3]} 34. Rf4 {[%clk 0:01:21.1]} 34...
Rb6 {[%clk 0:00:24.3]} 35. Rxg4 {[%clk 0:01:15.9]} 35... Rxb2 {[%clk 0:00:23.5]}
36. Rg8 {[%clk 0:01:16.5]} 36... c4 {[%clk 0:00:20.1]} 37. Rd8+ {[%clk
0:01:14.6]} 37... Ke4 {[%clk 0:00:19.9]} 38. Rc8 {[%clk 0:01:10]} 38... Kd3
{[%clk 0:00:20]} 39. g4 {[%clk 0:01:10.4]} 39... c3 {[%clk 0:00:20.1]} 40. g5
{[%clk 0:01:08.6]} 40... c2 {[%clk 0:00:20.3]} 41. Kg3 {[%clk 0:00:57.9]} 41...
Rb1 {[%clk 0:00:20.4]} 42. g6 {[%clk 0:00:21.4]} 42... Rg1+ {[%clk 0:00:19.1]}
43. Kf4 {[%clk 0:00:19.2]} 43... Rxg6 {[%clk 0:00:19.7]} 44. Ke5 {[%clk
0:00:18.5]} 44... Rg1 {[%clk 0:00:17.6]} 45. f4 {[%clk 0:00:17.8]} 45... c1=Q
{[%clk 0:00:17.6]} 46. Rxc1 {[%clk 0:00:18.1]} 46... Rxc1 {[%clk 0:00:18]} 47.
f5 {[%clk 0:00:19]} 47... Re1+ {[%clk 0:00:18.1]} 48. Kd6 {[%clk 0:00:15.8]}
48... Rf1 {[%clk 0:00:16.9]} 49. Ke6 {[%clk 0:00:15.3]} 49... Re1+ {[%clk
0:00:17]} 50. Kd6 {[%clk 0:00:15.5]} 50... Rf1 {[%clk 0:00:13.2]} 51. Ke6 {[%clk
0:00:14.9]} 51... Re1+ {[%clk 0:00:12.7]} 52. Kd6 {[%clk 0:00:14.9]} 1/2-1/2

[Event "Early-Titled-Tuesday-Blitz-March-26-2024"]
[Site "Chess.com"]
[Date "2024.03.26"]
[Round "5"]
[White "Khromkin"]
[Black "carloseduar100"]
[Result "1-0"]
[WhiteElo "2430"]
[BlackElo "2199"]
[TimeControl "180+1"]
[EndTime "8:54:38 PDT"]
[Termination "Khromkin won on time"]

1. d4 {[%clk 0:02:59.8]} 1... d5 {[%clk 0:02:58.9]} 2. c4 {[%clk 0:03:00.2]}
2... e5 {[%clk 0:02:57.5]} 3. dxe5 {[%clk 0:02:59.8]} 3... d4 {[%clk 0:02:57.2]}
4. Nf3 {[%clk 0:03:00.4]} 4... Nc6 {[%clk 0:02:56.5]} 5. g3 {[%clk 0:03:00.9]}
5... Nge7 {[%clk 0:02:55]} 6. Bg2 {[%clk 0:03:01.2]} 6... Ng6 {[%clk 0:02:54]}
7. Bg5 {[%clk 0:03:00]} 7... Be7 {[%clk 0:02:53]} 8. Bxe7 {[%clk 0:02:58.9]}
8... Qxe7 {[%clk 0:02:53.9]} 9. Nbd2 {[%clk 0:02:56]} 9... Ngxe5 {[%clk
0:02:51]} 10. O-O {[%clk 0:02:55.9]} 10... O-O {[%clk 0:02:46.1]} 11. Nxe5
{[%clk 0:02:44.7]} 11... Nxe5 {[%clk 0:02:45.8]} 12. Nf3 {[%clk 0:02:45.1]}
12... Nxc4 {[%clk 0:02:45.2]} 13. Qxd4 {[%clk 0:02:20.5]} 13... Nd6 {[%clk
0:02:38.1]} 14. e3 {[%clk 0:02:10.9]} 14... h6 {[%clk 0:02:00.2]} 15. Rfc1
{[%clk 0:02:10.5]} 15... c6 {[%clk 0:01:58.2]} 16. b4 {[%clk 0:02:05.7]} 16...
Be6 {[%clk 0:01:56.8]} 17. a4 {[%clk 0:02:04]} 17... Rfd8 {[%clk 0:01:56.7]} 18.
Qc5 {[%clk 0:01:57.5]} 18... Rac8 {[%clk 0:01:52.2]} 19. Nd4 {[%clk 0:01:55.6]}
19... Bd5 {[%clk 0:01:46]} 20. Bxd5 {[%clk 0:01:44.4]} 20... cxd5 {[%clk
0:01:46.9]} 21. Qxa7 {[%clk 0:01:44.5]} 21... Nc4 {[%clk 0:01:42.5]} 22. a5
{[%clk 0:01:31.8]} 22... Qe4 {[%clk 0:01:31.2]} 23. Re1 {[%clk 0:00:29]} 23...
Rc7 {[%clk 0:01:22.1]} 24. a6 {[%clk 0:00:26.2]} 24... Qe7 {[%clk 0:01:00.9]}
25. axb7 {[%clk 0:00:23.8]} 25... Rxb7 {[%clk 0:00:59.8]} 26. Qc5 {[%clk
0:00:24.4]} 26... Qe4 {[%clk 0:00:42.5]} 27. b5 {[%clk 0:00:20.9]} 27... Rdb8
{[%clk 0:00:30]} 28. Nc6 {[%clk 0:00:17.8]} 28... Rxb5 {[%clk 0:00:21.8]} 29.
Qd4 {[%clk 0:00:17.8]} 29... Qxd4 {[%clk 0:00:20]} 30. exd4 {[%clk 0:00:17.5]}
30... R8b7 {[%clk 0:00:15.7]} 31. Ra8+ {[%clk 0:00:17.1]} 31... Kh7 {[%clk
0:00:16]} 32. Nd8 {[%clk 0:00:15.5]} 32... Rd7 {[%clk 0:00:13.3]} 33. Re8 {[%clk
0:00:15.1]} 33... g5 {[%clk 0:00:08.8]} 34. Nc6 {[%clk 0:00:14.9]} 34... Rb1+
{[%clk 0:00:08.3]} 35. Kg2 {[%clk 0:00:14.3]} 35... Nd2 {[%clk 0:00:09.2]} 36.
Ne5 {[%clk 0:00:13.7]} 36... Rc7 {[%clk 0:00:07.8]} 37. Rh8+ {[%clk 0:00:12.4]}
37... Kg7 {[%clk 0:00:08.2]} 38. Ng4 {[%clk 0:00:11.9]} 38... f5 {[%clk
0:00:03.7]} 39. Rag8+ {[%clk 0:00:10.9]} 39... Kf7 {[%clk 0:00:03.7]} 40. Ne5+
{[%clk 0:00:10.7]} 40... Ke6 {[%clk 0:00:03.6]} 41. Rg6+ {[%clk 0:00:10.8]}
41... Ke7 {[%clk 0:00:02.3]} 42. Rh7+ {[%clk 0:00:11.1]} 42... Kf8 {[%clk
0:00:01.4]} 43. Rxc7 {[%clk 0:00:11.4]} 43... Ne4 {[%clk 0:00:01.8]} 44. Rxh6
{[%clk 0:00:10.4]} 1-0

[Event "Early-Titled-Tuesday-Blitz-March-26-2024"]
[Site "Chess.com"]
[Date "2024.03.26"]
[Round "5"]
[White "Yeritsyaan"]
[Black "Eagle_2019"]
[Result "0-1"]
[WhiteElo "2674"]
[BlackElo "2861"]
[TimeControl "180+1"]
[EndTime "8:54:39 PDT"]
[Termination "Eagle_2019 won by resignation"]

1. Nf3 {[%clk 0:03:00.9]} 1... d5 {[%clk 0:02:55.2]} 2. c4 {[%clk 0:02:58.8]}
2... e6 {[%clk 0:02:37.8]} 3. g3 {[%clk 0:02:58.9]} 3... Nf6 {[%clk 0:02:37.5]}
4. Bg2 {[%clk 0:02:59.3]} 4... Be7 {[%clk 0:02:32.8]} 5. O-O {[%clk 0:02:59.7]}
5... O-O {[%clk 0:02:32.7]} 6. b3 {[%clk 0:03:00.4]} 6... d4 {[%clk 0:02:26.9]}
7. Bb2 {[%clk 0:02:59.5]} 7... c5 {[%clk 0:02:24.7]} 8. d3 {[%clk 0:02:57.8]}
8... Nc6 {[%clk 0:02:23]} 9. a3 {[%clk 0:02:57.9]} 9... e5 {[%clk 0:02:20.9]}
10. Nbd2 {[%clk 0:02:37.2]} 10... h6 {[%clk 0:02:15.4]} 11. Ne1 {[%clk
0:02:33.4]} 11... Bf5 {[%clk 0:02:14.9]} 12. Nc2 {[%clk 0:02:32.5]} 12... Qd7
{[%clk 0:02:12.1]} 13. Rb1 {[%clk 0:02:28.3]} 13... Bh3 {[%clk 0:02:06.7]} 14.
b4 {[%clk 0:02:26.7]} 14... cxb4 {[%clk 0:02:03.7]} 15. axb4 {[%clk 0:02:27.6]}
15... Nxb4 {[%clk 0:02:03.8]} 16. Nxb4 {[%clk 0:02:27.6]} 16... Bxb4 {[%clk
0:02:04.7]} 17. Nf3 {[%clk 0:02:27.2]} 17... Bxg2 {[%clk 0:01:59.6]} 18. Kxg2
{[%clk 0:02:26.3]} 18... Bd6 {[%clk 0:01:59.8]} 19. Qb3 {[%clk 0:02:22.5]} 19...
Rfe8 {[%clk 0:01:56.6]} 20. Rfc1 {[%clk 0:02:13.6]} 20... Bc5 {[%clk 0:01:50.8]}
21. Ba3 {[%clk 0:02:12.2]} 21... b6 {[%clk 0:01:47.9]} 22. Nd2 {[%clk
0:01:59.7]} 22... h5 {[%clk 0:01:43.9]} 23. Bxc5 {[%clk 0:01:52.7]} 23... bxc5
{[%clk 0:01:42.4]} 24. Qb7 {[%clk 0:01:53.4]} 24... Qg4 {[%clk 0:01:37.5]} 25.
h3 {[%clk 0:01:45]} 25... Qxe2 {[%clk 0:01:27.3]} 26. Nf3 {[%clk 0:01:37.8]}
26... Qxd3 {[%clk 0:01:24.3]} 27. Nxe5 {[%clk 0:01:35.8]} 27... Qe4+ {[%clk
0:01:20.5]} 28. Qxe4 {[%clk 0:01:35.4]} 28... Nxe4 {[%clk 0:01:21.4]} 29. Nd3
{[%clk 0:01:30.6]} 29... a5 {[%clk 0:01:19.7]} 30. Rb5 {[%clk 0:01:25.6]} 30...
a4 {[%clk 0:01:16]} 31. Ra1 {[%clk 0:01:24.3]} 31... a3 {[%clk 0:01:11.8]} 32.
Nxc5 {[%clk 0:01:18.3]} 32... Nd2 {[%clk 0:01:08.3]} 33. Nb3 {[%clk 0:00:51.5]}
33... Nxc4 {[%clk 0:01:02.8]} 34. Nxd4 {[%clk 0:00:51.5]} 34... Red8 {[%clk
0:01:00.7]} 35. Nf3 {[%clk 0:00:40.7]} 35... a2 {[%clk 0:00:53]} 36. Rb4 {[%clk
0:00:34.2]} 36... Rdc8 {[%clk 0:00:49.8]} 37. Nd4 {[%clk 0:00:32.3]} 37... Ra3
{[%clk 0:00:46.1]} 38. Rb3 {[%clk 0:00:22.7]} 38... Rxb3 {[%clk 0:00:43.5]} 39.
Nxb3 {[%clk 0:00:23.6]} 39... Rb8 {[%clk 0:00:43.9]} 40. Nc1 {[%clk 0:00:24.3]}
40... Rb1 {[%clk 0:00:42.4]} 41. Rxa2 {[%clk 0:00:24]} 41... Rxc1 {[%clk
0:00:42.5]} 42. h4 {[%clk 0:00:19.5]} 42... g6 {[%clk 0:00:41.5]} 43. Kf3 {[%clk
0:00:18.9]} 43... Ne5+ {[%clk 0:00:40.5]} 44. Ke4 {[%clk 0:00:18]} 44... Ng4
{[%clk 0:00:39.3]} 45. f3 {[%clk 0:00:18.3]} 45... Rc4+ {[%clk 0:00:31.9]} 46.
Kd5 {[%clk 0:00:16.2]} 46... Ne3+ {[%clk 0:00:31.8]} 47. Kd6 {[%clk 0:00:16.9]}
47... Nf5+ {[%clk 0:00:31]} 48. Kd5 {[%clk 0:00:17.6]} 48... Rb4 {[%clk
0:00:29.2]} 49. Kc5 {[%clk 0:00:12.1]} 49... Rb3 {[%clk 0:00:26.2]} 50. g4
{[%clk 0:00:11.7]} 50... hxg4 {[%clk 0:00:25.4]} 51. fxg4 {[%clk 0:00:12.6]}
51... Nxh4 {[%clk 0:00:25.6]} 52. Kd5 {[%clk 0:00:09.5]} 52... Kg7 {[%clk
0:00:24.7]} 53. Ke4 {[%clk 0:00:08.9]} 53... Rb4+ {[%clk 0:00:24.4]} 54. Ke5
{[%clk 0:00:08.9]} 54... Rxg4 {[%clk 0:00:23.6]} 0-1